Cogmind - Beta 15 @@@ ROGUE MODE // 2025.05.19 @ 23:20:20 Player: Epsilon 11 Result: Destroyed by Y-64 Sentinel via exploding Fusion Modulator Performance ------------- Evolutions (5) 2500 Regions Visited (4) 800 Robots Destroyed (80) 400 Value Destroyed (3285) 3285 Prototype IDs (27) 540 Alien Tech Used (0) 0 Bonus (1508) 1508 TOTAL SCORE: 9033 Bonus ------- High Alert Combat Kills 379 Follower Combat Kills 341 Registered with UFD 300 Met Optimus in HQ 500 Friendly Fire -12 Cogmind --------- Core Integrity 0/1000 Matter 152/300 Energy 150/150 System Corruption 3% Temperature Cool (12) Movement Rolling (90) Ox2 Location -5/Factory Parts ------- > --- POWER (2) -------- Light Angular Momentum Engine > --- PROPULSION (4) --- Carbon-fiber Leg Carbon-fiber Leg Overtuned Huge Scrapsphere > --- UTILITY (9) ------ High-capacity Storage Unit Gravity Neutralizer Enhanced Optical Array Microactuators Transmission Jammer Jamming Amplifier > --- WEAPON (2) ------- Companion Sword > --- INVENTORY (20) --- Meta Core Matter Compressor (250) Advanced Signal Interpreter Phase Shifter Improved System Shield Subdweller Shrapnel Launcher Improved Remote Datajack CPS Tube (2) Multitool Vortex Trap DRS Beacon (Ready) Botcube Peak State ------------ > --- POWER ------------ Light Fission Core Enhanced Fission Core > --- PROPULSION ------- Overtuned Huge Scrapsphere Overtuned Huge Scrapsphere > --- UTILITY ---------- Scrap Suit High-capacity Storage Unit Enhanced Optical Array Improved Melee Analysis Suite Armor Integrity Analyzer Jamming Amplifier Hardened Heavy Armor Plating > --- WEAPON ----------- Improved Remote Datajack Companion Sword > --- INVENTORY -------- Meta Core Compact Wheel Compact Wheel Matter Compressor Gravity Neutralizer Advanced Signal Interpreter Transmission Jammer Advanced ECM Suite Phase Shifter Improved Medium Armor Plating Powered Armor Improved System Shield Improved System Restoration Module Subdweller Shrapnel Launcher CPS Tube Multitool Vortex Trap DRS Beacon Botcube [Rating: 91] Favorites ----------- Power Ion Engine Engine Ion Engine Power Core Light Fission Core Propulsion Armored Huge Wheel Leg Carbon-fiber Leg Wheel Armored Huge Wheel Utility High-capacity Storage Unit Device Microactuators Storage High-capacity Storage Unit Processor Enhanced Optical Array Protection Makeshift Light Armor Plating Weapon Subdweller Machine Gun Energy Gun Subdweller Laser Ballistic Gun Subdweller Machine Gun Ballistic Cannon Light Cannon Launcher Subdweller Shrapnel Launcher Special Weapon Remote Datajack Slashing Weapon Companion Sword Build | -11 -10 -10 -7 -5 ------- Run | Yrd Mat Sub Scr Fac Slots Evolved 10 | . . . . 10 Power 1 | . . . . 1 Propulsion 2 | . . . . 2 Utility 7 | . . . . 7 Weapon . | . . . . . Parts Attached 80 | 6 1 16 4 53 Power 14 | 1 . . 1 12 Engine 8 | 1 . . 1 6 Core 6 | . . . . 6 Reactor . | . . . . . Propulsion 22 | 2 . 5 1 14 Treads . | . . . . . Leg 6 | . . . . 6 Wheel 16 | 2 . 5 1 8 Hover . | . . . . . Flight . | . . . . . Utility 29 | 1 1 3 . 24 Device 15 | . . . . 15 Storage 2 | 1 . 1 . . Processor 4 | . . . . 4 Hackware . | . . . . . Protection 8 | . 1 2 . 5 Artifact . | . . . . . Weapon 15 | 2 . 8 2 3 Energy Gun 2 | . . 2 . . Energy Cannon . | . . . . . Ballistic Gun 5 | 2 . 3 . . Ballistic Cannon 2 | . . 2 . . Launcher 2 | . . 1 . 1 Special Weapon 3 | . . . 1 2 Impact Weapon . | . . . . . Slashing Weapon 1 | . . . 1 . Piercing Weapon . | . . . . . Special Melee Weapon . | . . . . . Unidentified Prototypes 4 | . . . 1 3 Parts Lost 36 | . . 6 . 30 Power 8 | . . . . 8 Propulsion 11 | . . 3 . 8 Utility 15 | . . 1 . 14 Weapon 2 | . . 2 . . Highest Loss Streak 10 | . . 3 . 10 To Critical Strikes 1 | . . 1 . . Average Backups 12 | . 6 7 17 12 Power 1 | . 1 . 3 . Propulsion . | . 1 . . . Utility 6 | . 1 4 8 7 Weapon 1 | . 2 . 2 . Tool/Special . | . . . . . Unused Backups 33 | . . 8 14 11 Power 5 | . . 1 4 . Propulsion 4 | . . 2 1 1 Utility 18 | . . 3 8 7 Weapon 3 | . . 2 1 . Tool/Special 3 | . . . . 3 Average Slot Usage (%) 78 | . 93 81 79 73 Engine 11 | . 14 14 14 4 Core 1 | . . . . 4 Wheel 17 | . 28 26 16 11 Device 5 | . . . . 17 Storage 8 | . 14 5 14 5 Processor 4 | . . . . 13 Protection 11 | . 7 14 14 5 Energy Gun 2 | . . 9 . . Ballistic Gun 8 | . 28 8 15 . Special Weapon 1 | . . . 3 . Slashing Weapon 2 | . . . 1 5 Peak Build Rating 91 | 6 7 18 35 91 Average Rating 34 | 4 6 12 24 68 On Entrance 12 | . 6 7 18 32 Naked Turns . | . . . . . Heaviest Build 92 | 13 14 57 61 92 Greatest Support 72 | 20 20 40 30 72 Greatest Overweight (x) 10 | . . 10 5 3 Average Overweight (x) 1 | . . 1 2 1 Largest Inventory Capacity 20 | 8 8 20 20 20 Average Capacity 16 | 7 8 9 20 20 Most Carried 20 | 2 8 20 20 20 Average Carried 14 | . 6 7 18 16 Final Capacity 20 | 8 8 20 20 20 Final Carried 20 | 2 8 20 20 12 Class Distribution -------------------- 67% | Mutant 15% | Subdweller-Mutant 7% | Scavenger-Mutant 4% | Infiltrator-Scrapper 3% | Scavenger-Scrapper Dominant Class ---------------- Mutant | -10/Materials Subdweller-Mutant | -10/Subcaves Mutant | -7/Scraptown Mutant | -5/Factory Resources | -11 -10 -10 -7 -5 ----------- Run | Yrd Mat Sub Scr Fac Matter Collected 2691 | 197 73 345 324 1752 Remotely . | . . . . . Salvage Created 3473 | . . 543 . 2930 Parts 164 | . . 38 . 126 Haulers Intercepted 1 | . . . . 1 Recyclers Shooed 2 | . . . . 2 Parts Field Recycled . | . . . . . Retrieved Matter . | . . . . . Parts Self-Destructed 17 | . . 17 . . Prevented . | . . . . . Kills | -11 -10 -10 -7 -5 ------- Run | Yrd Mat Sub Scr Fac Combat Hostiles Destroyed 65 | . . 16 . 49 Melee 41 | . . . . 41 Guns 10 | . . 10 . . Cannons 3 | . . 3 . . AOE 10 | . . 3 . 7 Classes Destroyed 15 | . . 5 . 10 Worker 6 | . . . . 6 Builder 4 | . . . . 4 Hauler 1 | . . . . 1 Recycler 2 | . . . . 2 Operator 1 | . . . . 1 Watcher 1 | . . . . 1 Swarmer 8 | . . 1 . 7 Grunt 32 | . . 3 . 29 Brawler 1 | . . . . 1 Sentry 3 | . . 1 . 2 Hunter 4 | . . . . 4 Programmer 5 | . . . . 5 Artisan 1 | . . 1 . . Subdweller 11 | . . 11 . . Scrapoid 1 | . . . . 1 Best Kill Streak 8 | . . 3 . 8 Combat Bots Only 6 | . . 3 . 6 Max Kills in Single Turn 2 | . . 2 . 2 Gunslinging . | . . . . . Exploded 2 | . . 1 . 2 Melee 1 | . . . . 1 Uniques/NPCs Destroyed . | . . . . . Combat | -11 -10 -10 -7 -5 -------- Run | Yrd Mat Sub Scr Fac Hostile Shots Fired 580 | . . 70 . 510 Missed 164 | . . 22 . 142 Hits 416 | . . 48 . 368 Melee 1 | . . . . 1 Projectile 415 | . . 48 . 367 AOE 7 | . . 6 . 1 Critical Strikes 17 | . . 2 . 15 Actively Blocked 1 | . . . . 1 Damage Taken 7491 | . . 1187 . 6304 Core 1310 | . . 247 . 1063 Absorbed by Shields 348 | . . . . 348 Redirected to Shielding 36 | . . . . 36 Ignored by Resistances 119 | . . . . 119 Core Remaining (%) 50 | 100 . . 1 . Volleys Fired 105 | . . 81 2 22 Largest 2 | . . 2 1 1 Hottest 100 | . . 100 5 40 Shots Fired 141 | . . 117 2 22 Gun 84 | . . 84 . . Cannon 26 | . . 26 . . Launcher 18 | . . 7 . 11 Special 13 | . . . 2 11 Kinetic 74 | . . 63 . 11 Thermal 54 | . . 54 . . Explosive . | . . . . . Electromagnetic . | . . . . . Robot Hit Streak 13 | . . 13 6 3 Robot Miss Streak 3 | . . 3 . 3 Penetration Max . | . . . . . Secondary Targets 1 | . . 1 . . Max Gunslinging Chain 1 | . . 1 . . Shots Hit Robots 217 | . . 64 2 151 Core Hits 123 | . . 29 . 94 Critical Kills 1 | . . 1 . . Critical Parts Destroyed 1 | . . 1 . . Critical Strikes 4 | . . 2 . 2 Destroy 2 | . . 2 . . Melee Attacks 190 | . . . . 190 Impact . | . . . . . Slashing 190 | . . . . 190 Piercing . | . . . . . Sneak Attacks 15 | . . . . 15 Combat Hostiles 2 | . . . . 2 Follow-up Attacks 1 | . . . . 1 Damage Inflicted 9785 | . . 1605 . 8180 Guns 962 | . . 962 . . Cannons 192 | . . 192 . . Explosions 2353 | . . 451 . 1902 Melee 6278 | . . . . 6278 Ramming . | . . . . . Kinetic 2764 | . . 883 . 1881 Thermal 722 | . . 722 . . Explosive . | . . . . . Electromagnetic 21 | . . . . 21 Impact . | . . . . . Slashing 6278 | . . . . 6278 Piercing . | . . . . . Highest Corruption 6 | . . . . 6 Average Corruption 3 | . . . . 3 Corruption Purged 6 | . . . . 6 Corruption Blocked . | . . . . . Effects 19 | . . . . 19 Message Errors 3 | . . . . 3 Matter Fused 4 | . . . . 4 Heat Flow Errors 3 | . . . . 3 Energy Discharges 2 | . . . . 2 Parts Rejected 1 | . . . . 1 Data Loss (minor) 5 | . . . . 5 Data Loss (major) 1 | . . . . 1 Overload Shots . | . . . . . Overflow Damage 593 | . . 17 . 576 Projectiles . | . . . . . Explosions 59 | . . 17 . 42 Melee 534 | . . . . 534 Knockbacks . | . . . . . Impact . | . . . . . Kinetic . | . . . . . Secondary . | . . . . . Self-Inflicted Damage 62 | . . 62 . . Shots 4 | . . 4 . . Rammed . | . . . . . Targets Rammed . | . . . . . Kicked . | . . . . . Crushed . | . . . . . Highest Temperature 230 | . . 5 . 230 Average Temperature 71 | . . 2 . 76 Received Heat Transfer 2139 | . . 204 . 1935 Siege Activations . | . . . . . Martial Activations . | . . . . . Shielding Activations . | . . . . . Robots Disrupted 1 | . . . . 1 Combat Hostiles 1 | . . . . 1 Robots Corrupted . | . . . . . Combat Hostiles . | . . . . . Parts Fried 1 | . . . . 1 Impact Corruptions . | . . . . . Robots Melted . | . . . . . Combat Hostiles . | . . . . . Parts Melted 3 | . . 1 . 2 Heat Transferred 875 | . . 875 . . Parts Sabotaged . | . . . . . Parts Stolen . | . . . . . Parts Stripped . | . . . . . Power Chain Reactions . | . . . . . Alert | -11 -10 -10 -7 -5 ------- Run | Yrd Mat Sub Scr Fac Maximum Alert Level 3 | . . . . 3 Low Security (%) 57 | 100 100 . . 53 Level 1 24 | . . . . 26 Level 2 9 | . . . . 10 Level 3 8 | . . . . 9 Level 4 . | . . . . . Level 5 . | . . . . . High Security . | . . . . . Max Security . | . . . . . Peak Influence 972 | . 30 . . 972 Initial . | . . . . . Average 227 | . 7 . . 249 Influence Increases 1960 | . 48 110 . 1802 Destroy 0b10 Robot/C 1240 | . . 100 . 1140 Destroy 0b10 Robot/NC 80 | . . . . 80 Destroy Leader 236 | . . 10 . 226 Allied During Kill 74 | . . . . 74 Successful Hack 72 | . 48 . . 24 Disable Machine 90 | . . . . 90 Destroy Structure 138 | . . . . 138 Lose Combat Pursuer 30 | . . . . 30 Influence Decreases 992 | . 48 110 . 834 Time Decay 602 | . 48 110 . 444 Lost Part 290 | . . . . 290 Lost Ally 100 | . . . . 100 Squads Dispatched 20 | . . . . 20 Investigation 7 | . . . . 7 Extermination 4 | . . . . 4 Reinforcement 7 | . . . . 7 Assault 1 | . . . . 1 Garrison 1 | . . . . 1 Intercept . | . . . . . Searches Triggered . | . . . . . Construction Impeded 2 | . . . . 2 Haulers Reinforced 1 | . . . . 1 Active Scanning Responses . | . . . . . Cargo Convoy Interrupts . | . . . . . Stealth | -11 -10 -10 -7 -5 --------- Run | Yrd Mat Sub Scr Fac Distress Signals 3 | . . . . 3 Communications Jammed 22 | . . . . 22 Distress Signals 22 | . . . . 22 Times Spotted 123 | . 1 21 . 101 Peak Tracking Total 11 | . 2 3 . 11 Tactical Retreats 8 | . . . . 8 Traps | -11 -10 -10 -7 -5 ------- Run | Yrd Mat Sub Scr Fac Traps Triggered 5 | . . 1 . 4 Indirectly . | . . . . . Trap Hack Attempts . | . . . . . Triggered . | . . . . . Disarmed . | . . . . . Reprogrammed . | . . . . . Reused . | . . . . . Traps Extracted . | . . . . . Installed . | . . . . . Triggered . | . . . . . Most Traps Carried 1 | . . 1 1 1 Machines | -11 -10 -10 -7 -5 ---------- Run | Yrd Mat Sub Scr Fac Machines Disabled 7 | . . 1 . 6 Max in Single Turn 2 | . . 1 . 2 Garrison Access 2 | . . . . 2 Machines Repaired . | . . . . . Machines Dismantled . | . . . . . Machines Sabotaged . | . . . . . Overloaded Fab Kills . | . . . . . Hacking | -11 -10 -10 -7 -5 --------- Run | Yrd Mat Sub Scr Fac Machines Accessed 30 | . 5 2 6 17 Terminals 8 | . 5 . . 3 Fabricators 2 | . . . . 2 Repair Stations 1 | . . . . 1 Recycling Units 7 | . . . . 7 Scanalyzers 2 | . . . . 2 Garrison Access 2 | . . . . 2 Total Hacks 89 | . 21 5 19 44 Successful 53 | . 13 5 19 16 Failed 36 | . 8 . . 28 Catastrophic 5 | . . . . 5 Database Lockouts . | . . . . . Manual 22 | . 11 . . 11 Terminals 26 | . 21 . . 5 Fabricators 5 | . . . . 5 Repair Stations 2 | . . . . 2 Recycling Units 23 | . . . . 23 Scanalyzers 5 | . . . . 5 Garrison Access 4 | . . . . 4 Terminal Hacks 28 | . 4 5 19 . Record 15 | . . 4 11 . Robot Analysis 6 | . . . 6 . Open Door 1 | . . . 1 . Terminal Index 1 | . 1 . . . Locate Traps 1 | . 1 . . . Registered Components 1 | . 1 . . . Registered Prototypes 1 | . 1 . . . Proto ID Catalog 2 | . . 1 1 . Fabricator Hacks 1 | . . . . 1 Network Status 1 | . . . . 1 Repair Station Hacks 1 | . . . . 1 Scan Component 1 | . . . . 1 Recycling Unit Hacks 6 | . . . . 6 Report Inventory 4 | . . . . 4 Retrieve Matter 1 | . . . . 1 Retrieve Components 1 | . . . . 1 Scanalyzer 1 | . . . . 1 Insert Component 1 | . . . . 1 Garrison Access Hacks 2 | . . . . 2 Seal Access 2 | . . . . 2 Unauthorized Hacks 14 | . 9 . . 5 Terminals 9 | . 9 . . . Botnet 4 | . 4 . . . Skim 5 | . 5 . . . Fabricators . | . . . . . Repair Stations . | . . . . . Recycling Units 5 | . . . . 5 Fedlink 5 | . . . . 5 Scanalyzers . | . . . . . Garrison Access . | . . . . . Data Cores Recovered . | . . . . . Used . | . . . . . Hacking Detections 18 | . 5 . . 13 Full Trace Events 2 | . . . . 2 Feedback Events . | . . . . . Feedback Blocked . | . . . . . Robot Schematics Acquired . | . . . . . Robots Built . | . . . . . Authchips . | . . . . . Time . | . . . . . Total Robot Build Rating . | . . . . . Part Schematics Acquired . | . . . . . Parts Built . | . . . . . Authchips . | . . . . . Time . | . . . . . Total Part Build Rating . | . . . . . Parts Repaired . | . . . . . Time . | . . . . . Parts Recycled . | . . . . . Recycled Matter . | . . . . . Retrieved Matter . | . . . . . Retrieved Components 7 | . . . . 7 Parts Scanalyzed 1 | . . . . 1 Part Schematics Acquired . | . . . . . Parts Damaged . | . . . . . Bothacking | -11 -10 -10 -7 -5 ------------ Run | Yrd Mat Sub Scr Fac Used RIF Installer . | . . . . . Robots Hacked 7 | . . . 2 5 Non-combat 5 | . . . . 5 Combat 2 | . . . 2 . Robot Hacks Applied 7 | . . . 2 5 parse_system 2 | . . . 2 . no_distress 1 | . . . . 1 find_chute 3 | . . . . 3 find_recycling 1 | . . . . 1 Relay Couplers Released . | . . . . . Fabnet Peak Effective % . | . . . . . Robots Rewired 1 | . . . . 1 Allies Hacked 1 | . . . . 1 Hacks Repelled . | . . . . . Allies | -11 -10 -10 -7 -5 -------- Run | Yrd Mat Sub Scr Fac Total Allies 6 | . . . . 6 Largest Group 5 | . . . . 5 Highest-Rated Group 238 | . . . . 238 Highest-Rated Ally 50 | . . . . 50 Total Orders 16 | . . . . 16 ROAM 3 | . . . . 3 FOLLOW 1 | . . . . 1 EXPLORE 10 | . . . . 10 RETURN 2 | . . . . 2 Ally Attacks 60 | . . . . 60 Total Damage 1351 | . . . . 1351 Kills 9 | . . . . 9 Allies Corrupted . | . . . . . Allies Melted . | . . . . . Intel | -11 -10 -10 -7 -5 ------- Run | Yrd Mat Sub Scr Fac Active Infowar (turns) 2479 | . . . . 2479 Optics 2479 | . . . . 2479 Jamming 538 | . . . . 538 ECM 445 | . . . . 445 Robot Analysis Total 6 | . . . 6 . Derelict Logs Recovered 5 | . . . 5 . Drone Launches 10 | . . . . 10 Drone Recoveries 2 | . . . . 2 Exploration | -11 -10 -10 -7 -5 ------------- Run | Yrd Mat Sub Scr Fac Turns Passed 7583 | 38 211 2044 2808 2482 Spaces Moved 5299 | 35 126 1529 2141 1468 Core 42 | 2 . 8 . 32 Treads . | . . . . . Legs 1 | . . . . 1 Wheels 5256 | 33 126 1521 2141 1435 Hover . | . . . . . Flight . | . . . . . Fastest Speed 50 | 50 80 80 107 80 Average Speed 114 | 78 80 111 128 100 Slowest Speed 550 | 80 80 550 155 260 Overloaded Moves . | . . . . . Propulsion Burnouts . | . . . . . Robots Hopped . | . . . . . Potential Cave-ins . | . . . . . Cave-ins Triggered . | . . . . . Exploration Rate (%) 48 | 4 24 69 91 56 Regions Visited 4 Branch Regions 2 Pre-discovered Areas 3 | . . . 2 1 Known Exits Taken . | . . . . . Unknown Exits Taken 4 | 1 1 1 1 . Scrap Searched 7 | . . . 7 . Spaces Dug 9 | . . . . 9 Terrain Destroyed 104 | . . 50 . 54 Melee 9 | . . . . 9 Projectile . | . . . . . AOE 95 | . . 50 . 45 Terrain Rammed . | . . . . . Walls Destroyed . | . . . . . Machines Disabled . | . . . . . Actions | -11 -10 -10 -7 -5 --------- Run | Yrd Mat Sub Scr Fac Total 6490 | 42 235 1757 2219 2237 Wait 589 | . 103 72 4 410 Move 5295 | 34 125 1528 2140 1468 Hop . | . . . . . Pick Up 97 | 2 6 29 31 29 Fast Attach 50 | 6 1 9 4 30 Attach 47 | . . 6 1 40 Detach 14 | . . . 2 12 Swap 6 | . . 3 . 3 Drop 87 | . . 21 35 31 Fire 105 | . . 81 2 22 Melee 189 | . . . . 189 Ram . | . . . . . Kick . | . . . . . Crush . | . . . . . Escape Stasis . | . . . . . Rewire . | . . . . . Trap . | . . . . . Miscellaneous 11 | . . 8 . 3 Route ------- -11/Scrapyard -10/Materials (discovered 6 exits: Mat x3 / Min x2 / *Sub) -10/Subcaves (discovered 4 exits: *Mat x2 / Rec / *Scr) -7/Scraptown (discovered 2 exits: *Fac x2) -5/Factory (discovered 2 exits: [*Fac] / [*Upp]) History --------- Turn | Location | Event 17 | -11/Scrapyard | Discovered new exit (range 16) 39 | -11/Scrapyard | Entered Materials 40 | -10/Materials | Met a group of wandering Federalists 124 | -10/Materials | Discovered new exit (range 12) 173 | -10/Materials | Identified exit to Mines 206 | -10/Materials | Learned 2 Storage zone layouts 209 | -10/Materials | Learned 4 Recycling zone layouts 210 | -10/Materials | Learned 2 Storage zone layouts 211 | -10/Materials | Learned location of 2 exits from Subcaves 212 | -10/Materials | Learned location of 1 exit from Storage 214 | -10/Materials | Identified exit to Materials 250 | -10/Materials | Entered Subcaves 251 | -10/Subcaves | Continued accompanying wandering Federalists (5) 251 | -10/Subcaves | Identified exit to Materials 251 | -10/Subcaves | Identified exit to Recycling 291 | -10/Subcaves | Discovered exit to Materials (range 3) 317 | -10/Subcaves | Build established: Mutant 405 | -10/Subcaves | Ambushed by Subdwellers from Twisted Machinery 516 | -10/Subcaves | Wandering Federalist uncovered a shortcut to Scraptown 575 | -10/Subcaves | A swath of the cavern ceiling suddenly collapsed 641 | -10/Subcaves | Visited 4L-MR0's lab 655 | -10/Subcaves | Found Meta Core 703 | -10/Subcaves | Visited Clippyterm 706 | -10/Subcaves | Learned Factory emergency access door positions 784 | -10/Subcaves | Shifting Twisted Machinery released Battle Rifle 836 | -10/Subcaves | Build established: Subdweller-Mutant 1039 | -10/Subcaves | Shifting Twisted Machinery released Piercing Trap 1045 | -10/Subcaves | Shifting Twisted Machinery released Battle Cannon 1177 | -10/Subcaves | Shifting Twisted Machinery released Sub. Shrapnel Launcher 1178 | -10/Subcaves | Shifting Twisted Machinery released Piercing Trap 1667 | -10/Subcaves | Ambushed by Subdweller buried in earth 1691 | -10/Subcaves | Core integrity fell below 50% 1738 | -10/Subcaves | Ambushed by angry Subdweller bent on revenge 1752 | -10/Subcaves | Core integrity fell below 20% 1784 | -10/Subcaves | Lost 3 parts (1n2w) 1979 | -10/Subcaves | Shifting Twisted Machinery released Sub. Machine Gun 1991 | -10/Subcaves | Build established: Mutant 2294 | -10/Subcaves | Entered Scraptown 2480 | -7/Scraptown | Discovered new exit (range 11) 2532 | -7/Scraptown | Scanned Subdweller tech in exchange for log data 2535 | -7/Scraptown | Learned location of Quarantine (-3) 2536 | -7/Scraptown | Learned Factory emergency access door positions 2538 | -7/Scraptown | Learned Research non-interactive machine intel 2539 | -7/Scraptown | Learned Research stockpile data 2541 | -7/Scraptown | Learned Research garrison access intel 2651 | -7/Scraptown | Visited SPCMW 2663 | -7/Scraptown | Visited Bundlers 2730 | -7/Scraptown | Visited Symbiants 2743 | -7/Scraptown | Heard Great Nut preacher, LISTEN AND RECITE! 2809 | -7/Scraptown | Visited Cyclists 2835 | -7/Scraptown | Visited Comm Corps 3029 | -7/Scraptown | Visited TADAMA 3036 | -7/Scraptown | Visited Junk Repository 3075 | -7/Scraptown | Visited UFD Registry 3075 | -7/Scraptown | Registered with UFD as "Macesys" 3113 | -7/Scraptown | Entered Cyclist Reading Room 3181 | -7/Scraptown | Visited Scrapoid Research Area 3202 | -7/Scraptown | Visited Science Guys 3247 | -7/Scraptown | Visited Abandonware Association 3256 | -7/Scraptown | Learned abandonware demo "OVRCLOCK.EXE" 3261 | -7/Scraptown | Learned abandonware demo "MELTYB.EXE" 3261 | -7/Scraptown | Learned abandonware demo "REBOOT5.EXE" 3311 | -7/Scraptown | Delivered Scrap Shield to a Scientist 3424 | -7/Scraptown | Visited Supply Room 3447 | -7/Scraptown | Visited Analyses Database 3475 | -7/Scraptown | Visited Derelict Rescue Squad 3637 | -7/Scraptown | Visited Scrapoid Pod Storage 3660 | -7/Scraptown | Visited Botcube Research 3686 | -7/Scraptown | Visited Sword Containment 3829 | -7/Scraptown | Guru changed UFD alias to "Monoeater" 4685 | -7/Scraptown | Found DRS Beacon 4799 | -7/Scraptown | Found Botcube 4831 | -7/Scraptown | Found Scrapoid Pod 5028 | -7/Scraptown | Met Optimus 5028 | -7/Scraptown | Accepted into 0bPrime 5093 | -7/Scraptown | Civil war broke out across Scraptown 5099 | -7/Scraptown | Discovered new exit (range 3) 5102 | -7/Scraptown | Entered Factory 5102 | -5/Factory | Evolved 10 slots: Power x1, Propulsion x2, Utility x7 5245 | -5/Factory | Discovered new exit (range 162) 5361 | -5/Factory | Loaded intel: 8 recycling unit locations 5472 | -5/Factory | Learned location of Protoforge (-2) 5726 | -5/Factory | Spotted B-75 Beast 6031 | -5/Factory | Lost 4 parts (1p1n2u) 6074 | -5/Factory | Garrison activated, responded to threat 6374 | -5/Factory | Scrapoid Pod released 05F07-D (x5) 6402 | -5/Factory | Found Powered Armor 6435 | -5/Factory | P-70 Sage assimilated allied 05F07-D 6441 | -5/Factory | Build established: Scavenger-Mutant 6489 | -5/Factory | Found Scrap Suit 6584 | -5/Factory | Found Scrap Suit 6926 | -5/Factory | Discovered new exit (range 3) 6939 | -5/Factory | Build established: Infiltrator-Scrapper 7178 | -5/Factory | Core integrity fell below 50% 7265 | -5/Factory | Lost 10 parts (2p1n7u) 7309 | -5/Factory | Core integrity fell below 20% 7352 | -5/Factory | Lost 8 parts (2p4n2u) 7502 | -5/Factory | First assault squad dispatched 7584 | -5/Factory | Destroyed by Y-64 Sentinel via exploding Fusion Modulator Last Messages --------------- 07541_ Acquired Lgt. Angular Momentum Engine. 07544_ Acquired Carbon-fiber Leg. 07544_ U-05 Engineer lays Concrete. 07548_ U-05 Engineer builds a Wall. 07549_ U-05 Engineer lays Concrete. 07550_ System corrupted: Component data lost. 07551_ U-05 Engineer builds a Wall. 07555_ U-05 Engineer lays Concrete. 07555_ U-05 Engineer builds a Door. 07556_ U-05 Engineer lays Concrete. 07558_ Lgt. Ion Engine destroyed. 07559_ U-05 Engineer builds a Door. 07560_ G-50 Soldier destroyed. 07562_ Ovr. Huge Scrapsphere repairs itself (+17). 07562_ Acquired 34 matter. 07563_ U-05 Engineer lays Concrete. 07567_ System corrupted: Component data lost. 07573_ Penetrated by Slug. 07576_ Slug penetrates Fusion Modulator. 07584_ Fusion Modulator explodes. Map ----- +----------------------------------------------------+ | # """"" #????????????????????????????? | | # """"" #????????????????????????????? | | #????????????????????????????? | | " """ ##???????????????????????????? | | ! """"" "#???????????????????????????? | | + """"" #????????????????????????????? | | #% ###########??????????????????? | | ##### "######+#### #??????????????????? | | % ##########+#######?? | | ?? | | ???? | | " ??????? | | ! ?????? | | ??????? | | ##########+????????? | | ################# T## #??????????????????? | | ##?????????#########+#######????????????????? | | " #?????????????# #????????????????? | | " #?????????????# ! #????????????????? | | " ##????????????# [ #????????????????? | | " ##????????????# ! #????????????????? | | ##????????????# Y #????????????????? | | " #?????????????# #????????????????? | | " #?????????????# #????????????????? | | " !#?????????????# ! #??????????????+?? | | " #?????????????# @ #????????????????? | | #?????????????# #???????????????? | | #?????????????# ##???????????????? | | ######?????????????#[ #????????????????? | | ???????????????????##############????????????????? | | ?????????????????????????????????????????????????? | | ?????????????????????????????????????????????????? | | ?????????????????????????????????????????????????? | | ?????????????????????????????????????????????????? | | ?????????????????????????????????????????????????? | | ?????????????????????????????????????????????????? | | ?????????????????????????????????????????????????? | | ?????????????????????????????????????????????????? | | ##############################???????????????????? | | """"" #???????????????????? | | "" F" #???????????????????? | | "" "" #???????????????????? | | ^ #???????????????????? | | """^""" """ #???????????????????? | | """ """ """ #???????????????????? | | """ """ """ #???????????????????? | | #???????????????????? | | ############ """ """ ^!! #???????????????????? | | ???????????# """ """ !! #???????????????????? | | ???????????# """ """ #???????????????????? | +----------------------------------------------------+ Best States ------------- Heat Dissipation 59 Coolant Potential 65 Energy Generation 34 Energy Capacity 410 Matter Stores 300 Matter Capacity 300 Sight Range 22 Terrain Scan Density 10 ECM Strength 2 Jamming Range 12 Power Amplification 20 Additional Mass Support 12 Armor Coverage 800 Resistance: KI 10 Core Shielding 20 Utility Shielding 33 Melee Speed Boost 20 Evasion (%) 44 Melee Accuracy 6 Armor Integrity Analysis 30 Item Schematics ----------------- None Robot Schematics ------------------ None Fabricated ------------ Nothing Repaired ---------- Nothing Alien Tech Used ----------------- None Achievements -------------- None Challenges ------------ None Game ------ Seed BlanketBottomlessLog Manual? 0 Play Time 02:08:21 Cumulative 265.9 hours Start 2025.05.19 @ 20:56:43 End 2025.05.19 @ 23:20:20 Sessions 1 Manual Loads 0 Difficulty Rogue Special Mode None Game No. 121 Rogue 78 Adventurer 43 Explorer 0 Win Type - Total 6 Types 4/0/1/0/0/0/0/1/0/0 Lore% 75 Gallery% 69 Achievement% 64 Wizard Run 0 Options --------- Layout 0 ASCII 0 Keyboard 0 Movement Mouse Keybinds 0 Fullscreen 1 Font 24/Smallcaps Map View 76x50 Zoom Use 0% Tactical HUD 1 Map Filters NONE Filters NONE Steam 1 RUN: 573fdd14-c8b7-4980-84bb-1d04e12943fb